Cogmind - Beta 14 @@@ ROGUE MODE // 2025.01.05 @ 10:25:18 Player: Thqwib Result: Self-destructed Performance ------------- Evolutions (1) 500 Regions Visited (3) 600 Robots Destroyed (18) 90 Value Destroyed (440) 440 Prototype IDs (0) 0 Alien Tech Used (0) 0 Bonus (67) 67 TOTAL SCORE: 1697 Bonus ------- High Alert Combat Kills 32 Follower Combat Kills 35 Cogmind --------- Core Integrity 208/400 Matter 295/300 Energy 86/100 System Corruption 0% Temperature Critical (593) Movement Treading (240) Ox1 Location -9/Materials Parts ------- > --- POWER (1) -------- (None) > --- PROPULSION (2) --- Light Treads > --- UTILITY (4) ------ Cryofiber Web Small Storage Unit Heavy Armor Plating > --- WEAPON (2) ------- Beam Rifle Particle Gun > --- INVENTORY (8) ---- High-capacity Battery (250) Beam Rifle Heavy Particle Cannon Peak State ------------ > --- POWER ------------ Light Nuclear Core > --- PROPULSION ------- Light Treads > --- UTILITY ---------- Cryofiber Web Small Storage Unit Heavy Armor Plating > --- WEAPON ----------- Beam Rifle Particle Gun > --- INVENTORY -------- High-capacity Battery Beam Rifle Heavy Particle Cannon [Rating: 18] Favorites ----------- Power Ion Engine Engine Ion Engine Power Core Light Nuclear Core Propulsion Aluminum Leg Treads Light Treads Leg Aluminum Leg Utility Small Storage Unit Device Heat Sink Storage Small Storage Unit Protection Heavy Armor Plating Weapon Medium Laser Energy Gun Medium Laser Energy Cannon Heavy Particle Cannon Ballistic Gun Light Assault Rifle Build | -11 -10 -10 -9 ------- Run | Yrd Mat Min Mat Slots Evolved 2 | . . . 2 Power . | . . . . Propulsion . | . . . . Utility 2 | . . . 2 Weapon . | . . . . Parts Attached 17 | . 3 1 13 Power 3 | . . 1 2 Engine 2 | . . 1 1 Core 1 | . . . 1 Reactor . | . . . . Propulsion 3 | . 1 . 2 Treads 2 | . . . 2 Leg 1 | . 1 . . Wheel . | . . . . Hover . | . . . . Flight . | . . . . Utility 7 | . 1 . 6 Device 6 | . 1 . 5 Storage . | . . . . Processor . | . . . . Hackware . | . . . . Protection 1 | . . . 1 Artifact . | . . . . Weapon 4 | . 1 . 3 Energy Gun 2 | . . . 2 Energy Cannon 1 | . . . 1 Ballistic Gun 1 | . 1 . . Ballistic Cannon . | . . . . Launcher . | . . . . Special Weapon . | . . . . Impact Weapon . | . . . . Slashing Weapon . | . . . . Piercing Weapon . | . . . . Special Melee Weapon . | . . . . Unidentified Prototypes . | . . . . Parts Lost 7 | . . . 7 Power 2 | . . . 2 Propulsion 1 | . . . 1 Utility 3 | . . . 3 Weapon 1 | . . . 1 Highest Loss Streak 7 | . . . 7 To Critical Strikes . | . . . . Average Slot Usage (%) 95 | . 89 100 96 Engine 11 | . 14 14 9 Treads 9 | . . . 18 Leg 15 | . 28 28 3 Device 19 | . 4 14 30 Storage 12 | . 14 14 11 Energy Gun 13 | . 15 14 11 Energy Cannon 4 | . . . 8 Ballistic Gun 6 | . 12 14 1 Peak Build Rating 18 | . 7 7 18 Average Rating 10 | . 6 7 15 On Entrance 6 | 6 6 7 7 Naked Turns . | . . . . Heaviest Build 24 | 14 14 14 24 Greatest Support 40 | 20 20 20 40 Greatest Overweight (x) . | . . . . Average Overweight (x) . | . . . . Largest Inventory Capacity 8 | . 8 8 8 Average Capacity 8 | . 8 8 8 Most Carried 8 | . 8 8 8 Average Carried 6 | . 6 5 7 Final Capacity 8 | 8 8 8 8 Final Carried 8 | 6 8 6 3 Class Distribution -------------------- 100% | Mutant Dominant Class ---------------- Mutant | -10/Materials Mutant | -10/Mines Mutant | -9/Materials Resources | -11 -10 -10 -9 ----------- Run | Yrd Mat Min Mat Matter Collected 359 | 197 24 23 115 Remotely . | . . . . Salvage Created 473 | . 88 23 362 Parts 32 | . 7 3 22 Haulers Intercepted . | . . . . Recyclers Shooed . | . . . . Parts Field Recycled . | . . . . Retrieved Matter . | . . . . Parts Self-Destructed . | . . . . Prevented . | . . . . Kills | -11 -10 -10 -9 ------- Run | Yrd Mat Min Mat Combat Hostiles Destroyed 18 | . 4 2 12 Guns 12 | . 4 2 6 Cannons 6 | . . . 6 Classes Destroyed 3 | . 2 . 1 Swarmer 9 | . 3 2 4 Grunt 8 | . 1 . 7 Sentry 1 | . . . 1 Best Kill Streak 4 | . 3 2 4 Combat Bots Only 4 | . 3 2 4 Max Kills in Single Turn 1 | . 1 1 1 Gunslinging . | . . . . Exploded . | . . . . Melee . | . . . . Uniques/NPCs Destroyed . | . . . . Combat | -11 -10 -10 -9 -------- Run | Yrd Mat Min Mat Hostile Shots Fired 145 | . 26 11 108 Missed 34 | . 7 4 23 Damage Taken 1324 | . 170 59 1095 Core 242 | . 40 10 192 Absorbed by Shields . | . . . . Core Remaining (%) 90 | 100 . 80 . Volleys Fired 49 | . 17 2 30 Largest 2 | . 2 2 2 Hottest 140 | . 70 70 140 Shots Fired 95 | . 34 4 57 Gun 75 | . 34 4 37 Cannon 20 | . . . 20 Launcher . | . . . . Special . | . . . . Kinetic 19 | . 17 2 . Thermal 76 | . 17 2 57 Explosive . | . . . . Electromagnetic . | . . . . Robot Hit Streak 9 | . 4 4 9 Robot Miss Streak 4 | . 4 1 2 Penetration Max . | . . . . Secondary Targets 4 | . 1 1 2 Max Gunslinging Chain 1 | . 1 1 1 Shots Hit Robots 62 | . 21 3 38 Core Hits 24 | . 6 2 16 Critical Kills . | . . . . Critical Parts Destroyed . | . . . . Critical Strikes 3 | . 1 . 2 Burn 3 | . 1 . 2 Melee Attacks . | . . . . Impact . | . . . . Slashing . | . . . . Piercing . | . . . . Sneak Attacks . | . . . . Combat Hostiles . | . . . . Follow-up Attacks . | . . . . Damage Inflicted 970 | . 221 33 716 Guns 663 | . 221 33 409 Cannons 300 | . . . 300 Explosions . | . . . . Melee . | . . . . Ramming 7 | . . . 7 Kinetic 91 | . 82 9 . Thermal 872 | . 139 24 709 Explosive . | . . . . Electromagnetic . | . . . . Impact . | . . . . Slashing . | . . . . Piercing . | . . . . Highest Corruption . | . . . . Average Corruption . | . . . . Corruption Purged . | . . . . Corruption Blocked . | . . . . Overload Shots . | . . . . Overflow Damage 5 | . . . 5 Projectiles 5 | . . . 5 Explosions . | . . . . Melee . | . . . . Knockbacks . | . . . . Impact . | . . . . Kinetic . | . . . . Secondary . | . . . . Self-Inflicted Damage . | . . . . Shots . | . . . . Rammed 2 | . . . 2 Targets Rammed 2 | . . . 2 Kicked . | . . . . Crushed . | . . . . Highest Temperature 578 | . 170 10 578 Average Temperature 120 | . 84 7 176 Received Heat Transfer 504 | . 30 . 474 Effects 3 | . . . 3 Interference 3 | . . . 3 Siege Activations . | . . . . Robots Corrupted . | . . . . Combat Hostiles . | . . . . Parts Fried . | . . . . Impact Corruptions . | . . . . Robots Melted . | . . . . Combat Hostiles . | . . . . Parts Melted 2 | . 1 . 1 Heat Transferred 2109 | . 481 74 1554 Parts Sabotaged . | . . . . Parts Stolen . | . . . . Parts Stripped . | . . . . Power Chain Reactions . | . . . . Alert | -11 -10 -10 -9 ------- Run | Yrd Mat Min Mat Peak Influence 505 | . 182 120 505 Initial 70 | . . 70 46 Average 190 | . 112 111 265 Maximum Alert Level 2 | . . . 2 Low Security (%) 65 | . 100 100 33 Level 1 24 | . . . 48 Level 2 9 | . . . 18 Level 3 . | . . . . Level 4 . | . . . . Level 5 . | . . . . High Security . | . . . . Max Security . | . . . . Squads Dispatched 2 | . 1 . 1 Investigation 1 | . 1 . . Extermination . | . . . . Reinforcement 1 | . . . 1 Assault . | . . . . Garrison . | . . . . Intercept . | . . . . Searches Triggered . | . . . . Construction Impeded . | . . . . Haulers Reinforced . | . . . . Active Scanning Responses . | . . . . Cargo Convoy Interrupts . | . . . . Stealth | -11 -10 -10 -9 --------- Run | Yrd Mat Min Mat Distress Signals 2 | . 1 . 1 Communications Jammed . | . . . . Distress Signals . | . . . . Times Spotted 38 | . 10 3 25 Peak Tracking Total 9 | . 4 3 9 Tactical Retreats 8 | . 2 . 6 Traps | -11 -10 -10 -9 ------- Run | Yrd Mat Min Mat Traps Triggered . | . . . . Indirectly . | . . . . Trap Hack Attempts . | . . . . Triggered . | . . . . Disarmed . | . . . . Reprogrammed . | . . . . Reused . | . . . . Traps Extracted . | . . . . Installed . | . . . . Triggered . | . . . . Machines | -11 -10 -10 -9 ---------- Run | Yrd Mat Min Mat Machines Disabled 2 | . . . 2 Max in Single Turn 1 | . . . 1 Machines Repaired . | . . . . Machines Dismantled . | . . . . Machines Sabotaged . | . . . . Overloaded Fab Kills . | . . . . Hacking | -11 -10 -10 -9 --------- Run | Yrd Mat Min Mat Machines Accessed 6 | . 3 . 3 Terminals 5 | . 3 . 2 Fabricators . | . . . . Repair Stations . | . . . . Recycling Units 1 | . . . 1 Scanalyzers . | . . . . Garrison Access . | . . . . Total Hacks 16 | . 9 . 7 Successful 10 | . 5 . 5 Failed 6 | . 4 . 2 Catastrophic 2 | . 1 . 1 Database Lockouts . | . . . . Manual 8 | . 3 . 5 Terminals 13 | . 9 . 4 Fabricators . | . . . . Repair Stations . | . . . . Recycling Units 3 | . . . 3 Scanalyzers . | . . . . Garrison Access . | . . . . Terminal Hacks 4 | . 3 . 1 Robot Analysis 1 | . 1 . . Zone Layout 3 | . 2 . 1 Fabricator Hacks . | . . . . Repair Station Hacks . | . . . . Recycling Unit Hacks 1 | . . . 1 Report Inventory 1 | . . . 1 Scanalyzer . | . . . . Garrison Access Hacks . | . . . . Unauthorized Hacks 5 | . 2 . 3 Terminals 3 | . 2 . 1 Botnet 3 | . 2 . 1 Fabricators . | . . . . Repair Stations . | . . . . Recycling Units 2 | . . . 2 Monitor 1 | . . . 1 Mask 1 | . . . 1 Scanalyzers . | . . . . Garrison Access . | . . . . Data Cores Recovered . | . . . . Used . | . . . . Hacking Detections 5 | . 3 . 2 Full Trace Events 1 | . 1 . . Feedback Events . | . . . . Feedback Blocked . | . . . . Robot Schematics Acquired . | . . . . Robots Built . | . . . . Authchips . | . . . . Time . | . . . . Total Robot Build Rating . | . . . . Part Schematics Acquired . | . . . . Parts Built . | . . . . Authchips . | . . . . Time . | . . . . Total Part Build Rating . | . . . . Parts Repaired . | . . . . Time . | . . . . Parts Recycled . | . . . . Recycled Matter . | . . . . Retrieved Matter . | . . . . Retrieved Components . | . . . . Parts Scanalyzed . | . . . . Part Schematics Acquired . | . . . . Parts Damaged . | . . . . Bothacking | -11 -10 -10 -9 ------------ Run | Yrd Mat Min Mat Used RIF Installer . | . . . . Robots Hacked . | . . . . Non-combat . | . . . . Combat . | . . . . Robot Hacks Applied . | . . . . Relay Couplers Released . | . . . . Fabnet Peak Effective % . | . . . . Robots Rewired . | . . . . Allies Hacked . | . . . . Hacks Repelled . | . . . . Allies | -11 -10 -10 -9 -------- Run | Yrd Mat Min Mat Total Allies 1 | . . 1 . Largest Group 1 | . . 1 1 Highest-Rated Group 31 | . . 31 31 Highest-Rated Ally 31 | . . 31 31 Total Orders . | . . . . Ally Attacks 10 | . . . 10 Total Damage 144 | . . . 144 Kills 1 | . . . 1 Allies Corrupted . | . . . . Allies Melted . | . . . . Intel | -11 -10 -10 -9 ------- Run | Yrd Mat Min Mat Robot Analysis Total 1 | . 1 . . Derelict Logs Recovered . | . . . . Drone Launches . | . . . . Drone Recoveries . | . . . . Exploration | -11 -10 -10 -9 ------------- Run | Yrd Mat Min Mat Turns Passed 796 | . 247 141 408 Spaces Moved 423 | 1 140 110 172 Core . | . . . . Treads 137 | . . . 137 Legs 286 | 1 140 110 35 Wheels . | . . . . Hover . | . . . . Flight . | . . . . Fastest Speed 120 | 120 120 120 120 Average Speed 132 | 120 120 120 151 Slowest Speed 160 | 120 120 120 160 Overloaded Moves . | . . . . Propulsion Burnouts . | . . . . Robots Hopped . | . . . . Cave-ins Triggered . | . . . . Exploration Rate (%) 18 | 2 24 28 21 Regions Visited 3 Branch Regions 1 Pre-discovered Areas . | . . . . Known Exits Taken . | . . . . Unknown Exits Taken 3 | 1 1 1 . Scrap Searched . | . . . . Spaces Dug 2 | . . . 2 Terrain Destroyed 6 | . . . 6 Melee . | . . . . Projectile 6 | . . . 6 AOE . | . . . . Terrain Rammed . | . . . . Walls Destroyed . | . . . . Machines Disabled . | . . . . Actions | -11 -10 -10 -9 --------- Run | Yrd Mat Min Mat Total 566 | . 187 117 262 Wait 53 | . 25 . 28 Move 420 | . 139 109 172 Hop . | . . . . Pick Up 11 | . 2 1 8 Fast Attach 3 | . 1 . 2 Attach 6 | . . . 6 Detach . | . . . . Swap 8 | . 2 1 5 Drop 14 | . 1 4 9 Fire 49 | . 17 2 30 Melee . | . . . . Ram . | . . . . Kick . | . . . . Crush 2 | . . . 2 Escape Stasis . | . . . . Rewire . | . . . . Trap . | . . . . Miscellaneous . | . . . . Route ------- -11/Scrapyard -10/Materials (discovered 2 exits: [*Min x2]) -10/Mines (discovered 2 exits: *Mat x2) -9/Materials History --------- Turn | Location | Event 1 | -11/Scrapyard | Discovered new exit (range 0) 1 | -11/Scrapyard | Entered Materials 195 | -10/Materials | Discovered new exit (range 12) 230 | -10/Materials | Discovered new exit (range 16) 248 | -10/Materials | Entered Mines 309 | -10/Mines | Build established: Mutant 342 | -10/Mines | Discovered new exit (range 9) 346 | -10/Mines | Received a Mining Laser from a helpful Derelict 347 | -10/Mines | Discovered new exit (range 8) 389 | -10/Mines | Entered Materials 389 | -9/Materials | Accompanied by 1 ally 389 | -9/Materials | Evolved 2 slots: Utility x2 797 | -9/Materials | Self-destructed Last Messages --------------- 00771_ Lgt. Treads destroyed. 00775_ K-01 Serf collects debris. 00777_ G-34 Mercenary suffers critical hit (Burn). 00779_ K-01 Serf collects debris. 00780_ G-34 Mercenary destroyed. 00780_ Switching to secondary target: Y-45 Defender. 00783_ K-01 Serf collects debris. 00783_ Processing Tank disabled. 00787_ K-01 Serf collects debris. 00789_ Power failure averted by Cryofiber Web. 00791_ Lgt. Nuclear Core destroyed. 00792_ Internal heat damage averted by Cryofiber Web. 00792_ K-01 Serf collects debris. 00793_ U-05 Engineer builds a Door. 00795_ System interference averted by Cryofiber Web. 00795_ Overheating: System interference. 00795_ Cryofiber Web temporarily disabled. 00795_ Beam Rifle temporarily disabled. 00796_ Overheating: System interference. 00796_ Particle Gun temporarily disabled. Map ----- +----------------------------------------------------+ | ?????????????????????## #############???? | | ?????????????????????## #############???? | | ?????????????????????## ######??????????? | | ?????????????????????## ######??????????? | | ?????????????????????## """ !!##??????????? | | ?????????????? ##### """ !##??????????? | | ??????????????#+####### """ [ ##??????????? | | ?????????????? ]]##??????????? | | ???????????????? !|##??????????? | | ?????????????????? = !!##??????????? | | ??????????????????########## = ######??????????? | | ?????????????????? ##########+########??????????? | | ????????????????????????## ##????????????? | | ????????????????????????## ##????????????? | | ????????????????????????##[[[ = ##?????#####??? | | ????????????????????????##[[[ ############??? | | ????????????????????????##[[ "" #########"##??? | | ????????????????????????##[ [ """ # ##??? | | ???????????????????????### "T """ # ##### | | ???????????????????????## """ # """ ##### | | ???????????????????????############# """=" *# | | ???????????????????????#############"" * """ % # | | ?????????????#######????####??????##"T #% # | | ???????## #######?############?##"" # # | | ??????? ###+### #####=#######?## # # | | ??????? ###=Y@ g ##?############ # | | ??????? T [*+%%"""" ##?############ # | | ??????? ###g""""" [##????######### + | | ??????? ###+### ###g"""""k ##????## [ # # | | ???????### ###/##?## u ##????## # # | | ????????????? # % ?## """ ##????## =+ # | | ????????????? # "????## """ ##????## "Y"%# ## | | ????????????? # ?????## """ ##????## """[# # | | ????????????? # ???? ## / ######## [%=# # | | ????????????? # ######+###############+## # | | ????????????? # """ / *%*[ # | | ????????????????""" ##### *= = # | | ???????????????????? #######+####+#########+## +[ | | ?????????????????????## [%=# ## """ # # | | ?????????????????????## # """ ## """ # # | | ?????????????????????## # """ ## """ #### | | ?????????????????????## # """ ## #### | | ?????????????????????## !!! # ## #### | | ?????????????????????## !!! # | ## ##### | | ?????????????????????## !! #################### | | ?????????????????????## #################??? | | ?????????????????????## ##?????????????????? | | ?????????????????????###########?????????????????? | | | | | +----------------------------------------------------+ Best States ------------- Heat Dissipation 48 Energy Generation 14 Energy Capacity 265 Matter Stores 300 Matter Capacity 300 Sight Range 16 Terrain Scan Density 10 Base Temperature (-) 100 Armor Coverage 600 Evasion (%) 55 Recoil Reduction 2 Item Schematics ----------------- None Robot Schematics ------------------ None Fabricated ------------ Nothing Alien Tech Used ----------------- None Achievements -------------- None Challenges ------------ None Game ------ Seed MetafieldColdPick Manual? 0 Play Time 00:13:12 Cumulative 83.0 hours Start 2025.01.05 @ 10:13:15 End 2025.01.05 @ 10:25:18 Sessions 1 Manual Loads 0 Difficulty Rogue Special Mode None Game No. 64 Rogue 64 Adventurer 0 Explorer 0 Win Type - Total 1 Types 1/0/0/0/0/0/0/0/0 Lore% 26 Gallery% 52 Achievement% 42 Wizard Run 0 Options --------- Layout 0 ASCII 0 Keyboard 0 Movement Arrows Keybinds 0 Fullscreen 2 Font 18/X11 Map View 76x50 Zoom Use 0% Tactical HUD 1 Map Filters NONE Filters NONE Steam 0 RUN: 417ab920-c30e-4668-b2c1-90eab7438c91